[Event "FIDE WCCC Open-08 2024"]
[Site "Montesilvano"]
[Date "2024.11.18"]
[Round "4.3"]
[White "Morozov, Arkhip"]
[Black "Badescu, Matei-Andrei"]
[Result "1-0"]
[ECO "B93"]
[WhiteElo "1687"]
[BlackElo "1829"]
[Annotator "NA RC"]
[PlyCount "97"]
[EventDate "2024.11.18"]
[EventType "swiss"]
[EventCountry "ITA"]
[SourceTitle "playchess.com"]
[Source "ChessBase"]
[SourceQuality "1"]
[TimeControl "5400+30"]

1. e4 {[%emt 0:00:03]} c5 {[%emt 0:00:10]} 2. Nf3 {[%emt 0:00:12]} d6 {[%emt 0:00:05]} 3. d4 {[%emt 0:00:35]} cxd4 {[%emt 0:00:06]} 4. Nxd4 {[%emt 0:00:31]} Nf6 {[%emt 0:02:17]} 5. Nc3 {[%emt 0:00:30]} a6 {[%emt 0:00:42]} 6. f4 {[%emt 0:04:12]} e5 {[%emt 0:12:57]} 7. Nf3 {[%emt 0:00:31]} Nbd7 {[%emt 0:00:25]} 8. Qe2 {[%emt 1:27:56]} b5 {[%emt 0:00:39]} 9. Bd2 {[%emt 0:00:00]} Bb7 {[%emt 0:00:58]} 10. O-O-O {[%emt 0:00:00]} Rc8 {[%emt 0:09:25]} 11. Nd5 {[%emt 0:00:00]} Rc4 {[%emt 0:07:14]} 12. Nxf6+ {[%emt 0:00:00]} gxf6 {[%emt 0:08:10]} 13. Qf2 {[%emt 0:00:00]} Rc8 {[%emt 0:01:58]} 14. Bd3 {[%emt 0:00:00]} Nc5 {[%emt 0:00:47]} 15. Qe2 {[%emt 0:00:00]} Nxd3+ {[%emt 0:08:15]} 16. Qxd3 {[%emt 0:00:00]} Rc4 {[%emt 0:00:06]} 17. Rhe1 {[%emt 0:00:00]} Qa8 {[%emt 0:01:24]} 18. c3 {[%emt 0:00:00]} Bxe4 {[%emt 0:00:44]} 19. Qe2 {[%emt 0:00:00]} Be7 {[%emt 0:01:20]} 20. b3 {[%emt 0:00:00]} d5 {[%emt 0:12:27]} 21. Kb2 {[%emt 0:00:00]} Rc8 {[%emt 0:00:56]} 22. fxe5 {[%emt 0:07:00]} fxe5 {[%emt 0:00:19]} 23. Nxe5 {[%emt 0:00:00]} b4 {[%emt 0:00:16]} 24. Qf2 {[%emt 0:01:00]} f6 {[%emt 0:04:05]} 25. Nf3 {[%emt 0:00:00]} f5 {[%emt 0:01:29]} 26. Nd4 {[%emt 0:00:00]} bxc3+ {[%emt 0:02:38]} 27. Bxc3 {[%emt 0:00:00]} Qa7 {[%emt 0:00:09]} 28. Qd2 {[%emt 0:00:00]} Rg8 {[%emt 0:01:43]} 29. g3 {[%emt 0:00:00]} Bg5 {[%emt 0:00:48]} 30. Qe2 {[%emt 0:00:00]} Bf6 {[%emt 0:03:44]} 31. Qh5+ {[%emt 0:00:00]} Rg6 {[%emt 0:00:09]} 32. Qxf5 {[%emt 0:00:00]} Qc5 {[%emt 0:02:21]} 33. Rxe4+ {[%emt 0:00:00]} dxe4 {[%emt 0:00:13]} 34. Qxe4+ {[%emt 0:00:00]} Qe7 {[%emt 0:03:09]} 35. Qf3 {[%emt 0:00:00]} Qc5 {[%emt 0:07:52]} 36. Qe2+ {[%emt 0:00:00]} Kf7 {[%emt 0:01:16]} 37. Qe6+ {[%emt 0:00:00]} Kf8 {[%emt 0:00:19]} 38. Qe1 {[%emt 0:00:00]} Qe5 {[%emt 0:01:19]} 39. Qd2 {[%emt 0:00:00]} Rg4 {[%emt 0:00:41]} 40. Re1 {[%emt 0:00:00]} Rxd4 {[%emt 0:00:32]} 41. Qh6+ {[%emt 0:00:00]} Bg7 {[%emt 0:00:38]} 42. Rxe5 {[%emt 0:00:00]} Bxh6 {[%emt 0:00:37]} 43. Bxd4 {[%emt 0:00:00]} Rd8 {[%emt 0:00:47]} 44. Bc3 {[%emt 0:00:00]} Kf7 {[%emt 0:00:17]} 45. Rf5+ {[%emt 0:00:00]} Kg6 {[%emt 0:00:13]} 46. Rf6+ {[%emt 0:00:00]} Kh5 {[%emt 0:00:20]} 47. g4+ {[%emt 0:00:00]} Kg5 {[%emt 0:00:08]} 48. Rxa6 {[%emt 0:00:00]} Rf8 {[%emt 0:00:29]} 49. Bd2+ {[%emt 0:00:00]} 1-0

[Event "FIDE WCCC Open-08 2024"]
[Site "Montesilvano"]
[Date "2024.11.18"]
[Round "4.4"]
[White "Mudriievskyi, Jan"]
[Black "Sattwik Swain"]
[Result "0-1"]
[ECO "C56"]
[WhiteElo "1682"]
[BlackElo "1787"]
[Annotator "NA RC"]
[PlyCount "112"]
[EventDate "2024.11.18"]
[EventType "swiss"]
[EventCountry "ITA"]
[SourceTitle "playchess.com"]
[Source "ChessBase"]
[SourceQuality "1"]
[TimeControl "5400+30"]

1. e4 {[%emt 0:00:01]} e5 {[%emt 0:00:12]} 2. Nf3 {[%emt 0:00:05]} Nc6 {[%emt 0:00:12]} 3. Bc4 {[%emt 0:00:12]} Bc5 {[%emt 0:00:18]} 4. c3 {[%emt 0:00:14]} Nf6 {[%emt 0:00:10]} 5. d4 {[%emt 0:00:10]} exd4 {[%emt 0:00:07]} 6. O-O {[%emt 0:00:13]} d6 {[%emt 0:08:37]} 7. cxd4 {[%emt 0:01:20]} Bb6 {[%emt 0:00:09]} 8. Bg5 {[%emt 0:01:11]} h6 {[%emt 0:08:35]} 9. Bh4 {[%emt 0:02:19]} Bg4 {[%emt 0:06:34]} 10. Qb3 {[%emt 0:33:27]} Na5 {[%emt 0:15:45]} 11. Qa4+ {[%emt 0:02:01]} Qd7 {[%emt 0:05:57]} 12. Bb5 {[%emt 0:17:09]} c6 {[%emt 0:00:51]} 13. Bd3 {[%emt 0:06:07]} Bc7 {[%emt 0:15:55]} 14. d5 {[%emt 0:07:18]} g5 {[%emt 0:05:44]} 15. Bg3 {[%emt 0:04:54]} Bxf3 {[%emt 0:05:06]} 16. gxf3 {[%emt 0:00:28]} h5 {[%emt 0:04:41]} 17. b4 {[%emt 0:01:55]} h4 {[%emt 0:00:06]} 18. bxa5 {[%emt 0:00:10]} Qh3 {[%emt 0:00:36]} 19. Be5 {[%emt 0:02:06]} dxe5 {[%emt 0:08:27]} 20. Rd1 {[%emt 0:02:52]} O-O {[%emt 0:03:48]} 21. Nd2 {[%emt 0:01:59]} Qd7 {[%emt 0:02:15]} 22. Bc4 {[%emt 0:00:57]} Rad8 {[%emt 0:04:44]} 23. dxc6 {[%emt 0:02:18]} bxc6 {[%emt 0:01:12]} 24. Nf1 {[%emt 0:00:55]} Qh3 {[%emt 0:01:32]} 25. Be2 {[%emt 0:01:11]} Nh5 {[%emt 0:00:40]} 26. Ne3 {[%emt 0:01:16]} Nf4 {[%emt 0:00:37]} 27. Bf1 {[%emt 0:03:05]} Qxf3 {[%emt 0:00:22]} 28. Re1 {[%emt 0:00:51]} Rd2 {[%emt 0:00:08]} 29. Nd1 {[%emt 0:01:46]} Qg4+ {[%emt 0:00:40]} 30. Kh1 {[%emt 0:00:20]} Rfd8 {[%emt 0:00:10]} 31. Rc1 {[%emt 0:03:26]} R8d4 {[%emt 0:01:03]} 32. Qb3 {[%emt 0:02:02]} Nd3 {[%emt 0:00:19]} 33. Rc2 {[%emt 0:01:37]} Rxc2 {[%emt 0:00:15]} 34. Bxd3 {[%emt 0:00:44]} Qf3+ {[%emt 0:00:14]} 35. Kg1 {[%emt 0:00:10]} Qxd3 {[%emt 0:00:16]} 36. Qxd3 {[%emt 0:01:08]} Rxd3 {[%emt 0:00:06]} 37. Ne3 {[%emt 0:00:16]} Rxa2 {[%emt 0:00:21]} 38. Nf5 {[%emt 0:00:14]} Rdd2 {[%emt 0:00:18]} 39. Rf1 {[%emt 0:00:10]} Bxa5 {[%emt 0:00:07]} 40. Ne7+ {[%emt 0:00:16]} Kh7 {[%emt 0:00:07]} 41. Nxc6 {[%emt 0:00:08]} Bc3 {[%emt 0:00:06]} 42. Ne7 {[%emt 0:00:29]} Bd4 {[%emt 0:00:15]} 43. Nf5 {[%emt 0:00:18]} Rxf2 {[%emt 0:00:09]} 44. Rxf2 {[%emt 0:00:10]} Bxf2+ {[%emt 0:00:05]} 45. Kf1 {[%emt 0:00:12]} a5 {[%emt 0:00:02]} 46. Nd6 {[%emt 0:00:13]} Bd4 {[%emt 0:00:09]} 47. Nxf7 {[%emt 0:00:15]} Rf2+ {[%emt 0:00:04]} 48. Ke1 {[%emt 0:00:10]} Rxf7 {[%emt 0:00:05]} 49. Ke2 {[%emt 0:00:08]} a4 {[%emt 0:00:04]} 50. Kd3 {[%emt 0:00:09]} Rc7 {[%emt 0:00:05]} 51. Ke2 {[%emt 0:00:07]} a3 {[%emt 0:00:07]} 52. Kf3 {[%emt 0:00:06]} a2 {[%emt 0:00:04]} 53. Kg4 {[%emt 0:00:13]} Kg6 {[%emt 0:00:08]} 54. h3 {[%emt 0:00:09]} a1=Q {[%emt 0:00:04]} 55. Kf3 {[%emt 0:00:14]} Qf1+ {[%emt 0:00:07]} 56. Kg4 {[%emt 0:00:08]} Qf4# {[%emt 0:00:05]} 0-1

[Event "FIDE WCCC Open-08 2024"]
[Site "Montesilvano"]
[Date "2024.11.18"]
[Round "4.5"]
[White "Divith Reddy Adulla"]
[Black "Cardas, Serghei"]
[Result "1-0"]
[ECO "C15"]
[WhiteElo "1784"]
[BlackElo "1627"]
[Annotator "NA RC"]
[PlyCount "79"]
[EventDate "2024.11.18"]
[EventType "swiss"]
[EventCountry "ITA"]
[SourceTitle "playchess.com"]
[Source "ChessBase"]
[SourceQuality "1"]
[TimeControl "5400+30"]

1. e4 {[%emt 0:00:01]} e6 {[%emt 0:00:07]} 2. d4 {[%emt 0:00:03]} d5 {[%emt 0:00:04]} 3. Nc3 {[%emt 0:00:04]} Bb4 {[%emt 0:00:05]} 4. exd5 {[%emt 0:00:04]} exd5 {[%emt 0:00:34]} 5. a3 {[%emt 0:00:04]} Bxc3+ {[%emt 0:00:22]} 6. bxc3 {[%emt 0:00:07]} Ne7 {[%emt 0:00:42]} 7. Bd3 {[%emt 0:00:05]} c5 {[%emt 0:02:24]} 8. dxc5 {[%emt 0:00:51]} Qa5 {[%emt 0:00:20]} 9. Ne2 {[%emt 0:00:05]} Qxc5 {[%emt 0:01:05]} 10. Be3 {[%emt 0:00:17]} Qc7 {[%emt 0:00:46]} 11. O-O {[%emt 0:00:24]} O-O {[%emt 0:00:39]} 12. Nd4 {[%emt 0:02:22]} a6 {[%emt 0:01:33]} 13. Qh5 {[%emt 0:04:05]} g6 {[%emt 0:01:18]} 14. Qh6 {[%emt 0:01:03]} Nbc6 {[%emt 0:01:24]} 15. Bf4 {[%emt 0:01:42]} Qd8 {[%emt 0:02:23]} 16. Nxc6 {[%emt 0:02:34]} Nxc6 {[%emt 0:02:09]} 17. Rae1 {[%emt 0:00:43]} Qf6 {[%emt 0:01:01]} 18. Bg5 {[%emt 0:00:22]} Qg7 {[%emt 0:00:26]} 19. Qh4 {[%emt 0:00:05]} h5 {[%emt 0:02:11]} 20. Bf6 {[%emt 0:00:06]} Qh7 {[%emt 0:02:20]} 21. Re3 {[%emt 1:25:53]} Be6 {[%emt 0:11:27]} 22. Rg3 {[%emt 0:00:00]} Rfe8 {[%emt 0:10:34]} 23. f4 {[%emt 0:00:00]} Ne7 {[%emt 0:05:50]} 24. Bxe7 {[%emt 0:00:00]} f5 {[%emt 0:00:21]} 25. Bf6 {[%emt 0:00:00]} Rac8 {[%emt 0:00:57]} 26. Bd4 {[%emt 0:00:00]} Rc7 {[%emt 0:01:53]} 27. Qf6 {[%emt 0:00:00]} Rf7 {[%emt 0:00:56]} 28. Rxg6+ {[%emt 0:00:00]} Kf8 {[%emt 0:00:20]} 29. Bc5+ {[%emt 0:00:00]} Ree7 {[%emt 0:00:41]} 30. Bxe7+ {[%emt 0:00:00]} Ke8 {[%emt 0:00:08]} 31. Qxe6 {[%emt 0:00:00]} Rxe7 {[%emt 0:00:26]} 32. Rg8+ {[%emt 0:00:00]} Qxg8 {[%emt 0:00:10]} 33. Qxg8+ {[%emt 0:00:00]} Kd7 {[%emt 0:00:05]} 34. Qxd5+ {[%emt 0:00:00]} Kc8 {[%emt 0:00:12]} 35. Bxf5+ {[%emt 0:00:00]} Kb8 {[%emt 0:00:10]} 36. Qd8+ {[%emt 0:00:00]} Ka7 {[%emt 0:00:06]} 37. Qxe7 {[%emt 0:00:00]} a5 {[%emt 0:00:12]} 38. Qc5+ {[%emt 0:00:00]} Ka8 {[%emt 0:00:06]} 39. Re1 {[%emt 0:00:00]} a4 {[%emt 0:00:07]} 40. Re8# {[%emt 0:00:00]} 1-0

[Event "FIDE WCCC Open-08 2024"]
[Site "Montesilvano"]
[Date "2024.11.18"]
[Round "4.6"]
[White "Nurshin, Nurali"]
[Black "Zhang, Yangming"]
[Result "0-1"]
[ECO "B33"]
[WhiteElo "1612"]
[BlackElo "1770"]
[Annotator "NA RC"]
[PlyCount "106"]
[EventDate "2024.11.18"]
[EventType "swiss"]
[EventCountry "ITA"]
[SourceTitle "playchess.com"]
[Source "ChessBase"]
[SourceQuality "1"]
[TimeControl "5400+30"]

1. e4 {[%emt 0:00:12]} c5 {[%emt 0:00:32]} 2. Nf3 {[%emt 0:00:16]} Nc6 {[%emt 0:00:44]} 3. d4 {[%emt 0:00:50]} cxd4 {[%emt 0:00:37]} 4. Nxd4 {[%emt 0:01:17]} Nf6 {[%emt 0:01:27]} 5. Nc3 {[%emt 0:00:35]} e5 {[%emt 0:00:48]} 6. Ndb5 {[%emt 1:30:20]} d6 {[%emt 0:00:43]} 7. Nd5 {[%emt 0:00:00]} Nxd5 {[%emt 0:00:48]} 8. exd5 {[%emt 0:00:00]} Nb8 {[%emt 0:00:58]} 9. a4 {[%emt 0:00:00]} Be7 {[%emt 0:00:32]} 10. Bd2 {[%emt 0:00:00]} O-O {[%emt 0:01:57]} 11. a5 {[%emt 0:00:00]} a6 {[%emt 0:02:05]} 12. Na3 {[%emt 0:00:00]} f5 {[%emt 0:01:14]} 13. Nc4 {[%emt 0:00:00]} Nd7 {[%emt 0:01:00]} 14. Bb4 {[%emt 0:00:00]} Qc7 {[%emt 0:03:09]} 15. Qd2 {[%emt 0:00:00]} f4 {[%emt 0:03:19]} 16. O-O-O {[%emt 0:00:00]} Nc5 {[%emt 0:03:00]} 17. Kb1 {[%emt 0:00:00]} Rd8 {[%emt 0:01:44]} 18. h4 {[%emt 0:00:00]} Bf5 {[%emt 0:02:54]} 19. Be2 {[%emt 0:00:00]} Rac8 {[%emt 0:01:21]} 20. Bxc5 {[%emt 0:00:00]} Qxc5 {[%emt 0:01:32]} 21. g4 {[%emt 0:00:00]} Be4 {[%emt 1:10:36]} 22. Rh3 {[%emt 0:00:00]} Qxf2 {[%emt 0:00:00]} 23. g5 {[%emt 0:00:00]} Bg2 {[%emt 0:00:00]} 24. Rb3 {[%emt 0:00:00]} Qxh4 {[%emt 0:00:00]} 25. Rxb7 {[%emt 0:00:00]} Bxg5 {[%emt 0:00:00]} 26. Bd3 {[%emt 0:00:00]} f3 {[%emt 0:00:00]} 27. Qb4 {[%emt 0:00:00]} f2 {[%emt 0:00:00]} 28. b3 {[%emt 0:00:00]} Qg4 {[%emt 0:00:00]} 29. Nb2 {[%emt 0:00:09]} Qxb4 {[%emt 0:00:00]} 30. Rxb4 {[%emt 0:00:03]} e4 {[%emt 0:00:00]} 31. Bxa6 {[%emt 0:00:15]} e3 {[%emt 0:00:00]} 32. Rg4 {[%emt 0:00:21]} Bf3 {[%emt 0:00:00]} 33. Rxg5 {[%emt 0:00:15]} Bxd1 {[%emt 0:00:00]} 34. Nxd1 {[%emt 0:00:06]} Re8 {[%emt 0:00:00]} 35. Rf5 {[%emt 0:01:43]} g6 {[%emt 0:00:00]} 36. Rf3 {[%emt 0:00:12]} e2 {[%emt 0:00:00]} 37. Bxe2 {[%emt 0:00:15]} Rxe2 {[%emt 0:00:00]} 38. Nxf2 {[%emt 0:00:59]} Rcxc2 {[%emt 0:00:00]} 39. Nd3 {[%emt 0:00:36]} Rcd2 {[%emt 0:00:00]} 40. a6 {[%emt 0:00:16]} Ra2 {[%emt 0:00:00]} 41. Nb4 {[%emt 0:00:30]} Ra5 {[%emt 0:00:00]} 42. Rf4 {[%emt 0:00:36]} g5 {[%emt 0:00:00]} 43. Rc4 {[%emt 0:00:32]} h5 {[%emt 0:00:00]} 44. Rc7 {[%emt 0:00:53]} Re4 {[%emt 0:00:00]} 45. a7 {[%emt 0:00:17]} Rxb4 {[%emt 0:00:00]} 46. Rc8+ {[%emt 0:00:03]} Kf7 {[%emt 0:00:00]} 47. a8=Q {[%emt 0:00:16]} Rxa8 {[%emt 0:00:00]} 48. Rxa8 {[%emt 0:00:06]} Rxb3+ {[%emt 0:00:00]} 49. Kc2 {[%emt 0:00:11]} Rb5 {[%emt 0:00:00]} 50. Kd3 {[%emt 0:00:28]} Rxd5+ {[%emt 0:00:00]} 51. Ke4 {[%emt 0:00:05]} Re5+ {[%emt 0:00:00]} 52. Kd4 {[%emt 0:00:12]} h4 {[%emt 0:00:00]} 53. Rd8 {[%emt 0:00:44]} Ke6 {[%emt 0:00:00]} 0-1

[Event "FIDE WCCC Open-08 2024"]
[Site "Montesilvano"]
[Date "2024.11.18"]
[Round "4.7"]
[White "Kapitanski, Furion"]
[Black "Bausys, Benas"]
[Result "1/2-1/2"]
[ECO "C42"]
[WhiteElo "1707"]
[BlackElo "1564"]
[Annotator "NA RC"]
[PlyCount "172"]
[EventDate "2024.11.18"]
[EventType "swiss"]
[EventCountry "ITA"]
[SourceTitle "playchess.com"]
[Source "ChessBase"]
[SourceQuality "1"]
[TimeControl "5400+30"]

1. e4 {[%emt 0:00:01]} e5 {[%emt 0:00:09]} 2. Nf3 {[%emt 0:00:05]} Nf6 {[%emt 0:00:06]} 3. Nxe5 {[%emt 0:00:20]} d6 {[%emt 0:00:07]} 4. Nf3 {[%emt 0:00:14]} Nxe4 {[%emt 0:00:12]} 5. d4 {[%emt 0:00:06]} d5 {[%emt 0:00:06]} 6. Bd3 {[%emt 0:00:07]} Bd6 {[%emt 0:00:08]} 7. O-O {[%emt 0:00:08]} O-O {[%emt 0:00:09]} 8. Re1 {[%emt 0:02:42]} Bf5 {[%emt 0:00:36]} 9. c4 {[%emt 0:02:49]} c6 {[%emt 0:00:40]} 10. c5 {[%emt 0:00:39]} Bc7 {[%emt 0:00:30]} 11. b4 {[%emt 0:02:56]} a6 {[%emt 0:01:11]} 12. Qc2 {[%emt 0:12:41]} Bg6 {[%emt 0:13:54]} 13. Nbd2 {[%emt 0:10:49]} f5 {[%emt 0:09:53]} 14. Qb3 {[%emt 0:19:00]} Nd7 {[%emt 0:02:38]} 15. Nxe4 {[%emt 0:01:22]} fxe4 {[%emt 0:01:22]} 16. Bxe4 {[%emt 0:00:53]} Bxe4 {[%emt 0:04:45]} 17. Rxe4 {[%emt 0:00:15]} Kh8 {[%emt 0:03:50]} 18. Re6 {[%emt 0:04:21]} Nf6 {[%emt 0:02:00]} 19. Bg5 {[%emt 0:01:22]} Qd7 {[%emt 0:00:49]} 20. Re2 {[%emt 0:16:02]} Ne4 {[%emt 0:01:52]} 21. Bh4 {[%emt 0:02:12]} Qg4 {[%emt 0:02:09]} 22. Bg3 {[%emt 0:03:30]} Bxg3 {[%emt 0:00:22]} 23. fxg3 {[%emt 0:03:04]} Nxg3 {[%emt 0:03:58]} 24. hxg3 {[%emt 0:07:06]} Rxf3 {[%emt 0:00:25]} 25. Qxf3 {[%emt 0:00:20]} Qxd4+ {[%emt 0:00:12]} 26. Qe3 {[%emt 0:00:13]} Qxa1+ {[%emt 0:00:13]} 27. Re1 {[%emt 0:00:05]} Qf6 {[%emt 0:00:16]} 28. Qe8+ {[%emt 0:00:09]} Qf8 {[%emt 0:00:08]} 29. Qd7 {[%emt 0:00:12]} Rb8 {[%emt 0:03:51]} 30. Re7 {[%emt 0:01:45]} h6 {[%emt 0:12:45]} 31. Qc7 {[%emt 0:03:31]} Kh7 {[%emt 0:06:12]} 32. Kh2 {[%emt 0:00:34]} a5 {[%emt 0:03:25]} 33. bxa5 {[%emt 0:00:36]} Ra8 {[%emt 0:00:32]} 34. Rf7 {[%emt 0:01:09]} Qg8 {[%emt 0:01:09]} 35. Rd7 {[%emt 0:00:51]} d4 {[%emt 0:04:29]} 36. Rxd4 {[%emt 0:00:57]} Qxa2 {[%emt 0:02:12]} 37. Qxb7 {[%emt 0:00:26]} Rxa5 {[%emt 0:03:15]} 38. Qxc6 {[%emt 0:00:17]} Qc2 {[%emt 0:00:34]} 39. Rd5 {[%emt 0:02:30]} Qe4 {[%emt 0:01:26]} 40. Rd6 {[%emt 0:00:50]} Qe2 {[%emt 0:00:58]} 41. Qd5 {[%emt 0:01:00]} Qc2 {[%emt 0:01:59]} 42. Rd8 {[%emt 0:00:55]} Qxc5 {[%emt 0:04:48]} 43. Qxc5 {[%emt 0:00:42]} Rxc5 {[%emt 0:00:06]} 44. Rd4 {[%emt 0:00:07]} Rc3 {[%emt 0:01:10]} 45. Rd6 {[%emt 0:00:09]} h5 {[%emt 0:00:29]} 46. Kh3 {[%emt 0:00:23]} g6 {[%emt 0:00:37]} 47. Rd4 {[%emt 0:00:54]} Kh6 {[%emt 0:00:20]} 48. Rd5 {[%emt 0:00:16]} Re3 {[%emt 0:01:11]} 49. Rc5 {[%emt 0:00:11]} Re4 {[%emt 0:00:43]} 50. Rd5 {[%emt 0:00:09]} Rg4 {[%emt 0:00:14]} 51. Rc5 {[%emt 0:00:12]} Rg5 {[%emt 0:00:15]} 52. Rc7 {[%emt 0:00:11]} Re5 {[%emt 0:00:33]} 53. g4 {[%emt 0:00:24]} Kg5 {[%emt 0:02:06]} 54. gxh5 {[%emt 0:04:48]} Kxh5 {[%emt 0:00:58]} 55. Rg7 {[%emt 0:00:00]} Re3+ {[%emt 0:00:39]} 56. g3 {[%emt 0:00:00]} Kg5 {[%emt 0:00:46]} 57. Rg8 {[%emt 0:00:00]} Re6 {[%emt 0:00:14]} 58. Rd8 {[%emt 0:00:00]} Re5 {[%emt 0:01:36]} 59. Rg8 {[%emt 0:00:00]} Kf5 {[%emt 0:01:20]} 60. Rf8+ {[%emt 0:00:00]} Kg5 {[%emt 0:02:03]} 61. Rg8 {[%emt 0:00:00]} Re7 {[%emt 0:00:20]} 62. Rf8 {[%emt 0:00:00]} Rh7+ {[%emt 0:00:07]} 63. Kg2 {[%emt 0:00:00]} Ra7 {[%emt 0:01:27]} 64. Rf1 {[%emt 0:00:00]} Ra4 {[%emt 0:00:38]} 65. Rf2 {[%emt 0:00:00]} Kh5 {[%emt 0:01:12]} 66. Kh3 {[%emt 0:00:00]} g5 {[%emt 0:00:55]} 67. Rg2 {[%emt 0:00:00]} Ra3 {[%emt 0:00:37]} 68. Kh2 {[%emt 0:00:00]} Kg4 {[%emt 0:00:05]} 69. Rg1 {[%emt 0:00:00]} Ra2+ {[%emt 0:00:35]} 70. Rg2 {[%emt 0:00:00]} Ra1 {[%emt 0:00:48]} 71. Rf2 {[%emt 0:00:01]} Re1 {[%emt 0:00:25]} 72. Rg2 {[%emt 0:00:52]} Kf3 {[%emt 0:00:38]} 73. Ra2 {[%emt 0:00:25]} Re2+ {[%emt 0:02:32]} 74. Rxe2 {[%emt 0:00:11]} Kxe2 {[%emt 0:00:02]} 75. g4 {[%emt 0:00:21]} Kf3 {[%emt 0:00:11]} 76. Kh3 {[%emt 0:00:13]} Kf4 {[%emt 0:00:07]} 77. Kh2 {[%emt 0:00:08]} Kxg4 {[%emt 0:00:09]} 78. Kg2 {[%emt 0:00:06]} Kf4 {[%emt 0:00:16]} 79. Kf2 {[%emt 0:00:10]} g4 {[%emt 0:00:04]} 80. Kg2 {[%emt 0:00:08]} g3 {[%emt 0:00:10]} 81. Kg1 {[%emt 0:00:06]} Kf3 {[%emt 0:00:19]} 82. Kf1 {[%emt 0:00:06]} Kf4 {[%emt 0:00:12]} 83. Kg2 {[%emt 0:00:07]} Kg4 {[%emt 0:00:06]} 84. Kg1 {[%emt 0:00:07]} Kh3 {[%emt 0:00:11]} 85. Kh1 {[%emt 0:00:09]} g2+ {[%emt 0:00:07]} 86. Kg1 {[%emt 0:00:05]} Kg3 {[%emt 0:00:11]} 1/2-1/2

[Event "FIDE WCCC Open-08 2024"]
[Site "Montesilvano"]
[Date "2024.11.18"]
[Round "4.8"]
[White "Stankowski, Wiktor"]
[Black "Jia, Zining (Matthew)"]
[Result "0-1"]
[ECO "B33"]
[WhiteElo "1617"]
[BlackElo "1550"]
[Annotator "NA RC"]
[PlyCount "146"]
[EventDate "2024.11.18"]
[EventType "swiss"]
[EventCountry "ITA"]
[SourceTitle "playchess.com"]
[Source "ChessBase"]
[SourceQuality "1"]
[TimeControl "5400+30"]

1. e4 {[%emt 0:00:05]} c5 {[%emt 0:00:03]} 2. Nf3 {[%emt 0:00:26]} e6 {[%emt 0:00:05]} 3. d4 {[%emt 0:00:33]} cxd4 {[%emt 0:00:07]} 4. Nxd4 {[%emt 0:00:17]} Nf6 {[%emt 0:00:05]} 5. Nc3 {[%emt 0:00:34]} Nc6 {[%emt 0:00:06]} 6. Ndb5 {[%emt 0:00:49]} d6 {[%emt 0:00:59]} 7. Bf4 {[%emt 0:07:19]} e5 {[%emt 0:00:07]} 8. Bg5 {[%emt 0:02:17]} a6 {[%emt 0:00:26]} 9. Na3 {[%emt 0:03:09]} Be7 {[%emt 0:00:14]} 10. Bxf6 {[%emt 0:05:37]} Bxf6 {[%emt 0:00:05]} 11. Nc4 {[%emt 0:04:25]} Be7 {[%emt 0:02:23]} 12. Nd5 {[%emt 0:04:00]} b5 {[%emt 0:01:19]} 13. Nxe7 {[%emt 0:03:07]} Kxe7 {[%emt 0:00:04]} 14. Ne3 {[%emt 0:05:41]} Re8 {[%emt 0:01:34]} 15. Qd5 {[%emt 0:06:26]} Qc7 {[%emt 0:03:04]} 16. Be2 {[%emt 0:12:25]} Be6 {[%emt 0:01:52]} 17. Qd2 {[%emt 0:04:58]} h6 {[%emt 0:06:02]} 18. Bg4 {[%emt 0:05:48]} Kf8 {[%emt 0:00:59]} 19. O-O {[%emt 0:08:34]} Rad8 {[%emt 0:03:07]} 20. f3 {[%emt 0:08:05]} Qa7 {[%emt 0:02:33]} 21. Kh1 {[%emt 0:00:51]} Qc5 {[%emt 0:00:29]} 22. Rad1 {[%emt 0:03:02]} Bxg4 {[%emt 0:04:05]} 23. fxg4 {[%emt 0:00:25]} Rd7 {[%emt 0:02:27]} 24. c3 {[%emt 0:05:20]} Red8 {[%emt 0:02:04]} 25. b4 {[%emt 0:01:01]} Qb6 {[%emt 0:02:16]} 26. Rf2 {[%emt 0:01:27]} a5 {[%emt 0:02:58]} 27. a3 {[%emt 0:02:05]} axb4 28. axb4 {[%emt 0:00:02]} Ne7 {[%emt 0:07:04]} 29. Qa2 {[%emt 0:00:45]} Ng6 {[%emt 0:00:11]} 30. Rdf1 {[%emt 0:00:58]} Qb7 {[%emt 0:00:09]} 31. h3 {[%emt 0:02:49]} Nf4 {[%emt 0:00:54]} 32. Nf5 {[%emt 0:00:25]} Qxe4 {[%emt 0:00:33]} 33. Kh2 {[%emt 0:00:50]} Qd5 {[%emt 0:03:49]} 34. Qxd5 {[%emt 0:01:02]} Nxd5 {[%emt 0:00:04]} 35. Rc1 {[%emt 0:00:52]} Nf4 {[%emt 0:01:28]} 36. Rd2 {[%emt 0:00:13]} d5 {[%emt 0:00:32]} 37. g3 {[%emt 0:00:17]} Ne6 {[%emt 0:00:14]} 38. Re2 {[%emt 0:00:30]} f6 {[%emt 0:00:31]} 39. Rf1 {[%emt 0:00:24]} Kg8 {[%emt 0:00:17]} 40. h4 {[%emt 0:00:36]} Kh7 {[%emt 0:00:20]} 41. Rd2 {[%emt 0:01:21]} Rc8 {[%emt 0:00:48]} 42. Ne3 {[%emt 0:01:08]} d4 {[%emt 0:00:35]} 43. cxd4 {[%emt 0:00:29]} Nxd4 {[%emt 0:00:29]} 44. Kg2 {[%emt 0:00:29]} Rdc7 {[%emt 0:00:21]} 45. Nf5 {[%emt 0:01:04]} Rc2 {[%emt 0:00:35]} 46. Rff2 {[%emt 0:00:00]} Rxd2 {[%emt 0:00:06]} 47. Rxd2 {[%emt 0:00:07]} Nxf5 {[%emt 0:01:12]} 48. gxf5 {[%emt 0:00:01]} Rc4 {[%emt 0:00:10]} 49. Rb2 {[%emt 0:00:07]} g6 {[%emt 0:00:12]} 50. fxg6+ {[%emt 0:00:23]} Kxg6 {[%emt 0:00:07]} 51. Kh3 {[%emt 0:00:33]} h5 {[%emt 0:00:28]} 52. Kg2 {[%emt 0:00:13]} Kf5 {[%emt 0:00:05]} 53. Rf2+ {[%emt 0:00:15]} Ke6 {[%emt 0:00:04]} 54. Rb2 {[%emt 0:00:16]} e4 {[%emt 0:00:13]} 55. Kf2 {[%emt 0:00:10]} f5 {[%emt 0:00:08]} 56. Rb3 {[%emt 0:00:10]} Ke5 {[%emt 0:00:06]} 57. Ke3 {[%emt 0:00:08]} Rd4 {[%emt 0:00:35]} 58. Rc3 {[%emt 0:00:59]} Rxb4 {[%emt 0:01:34]} 59. Rc5+ {[%emt 0:00:13]} Ke6 {[%emt 0:00:05]} 60. Kf4 {[%emt 0:00:09]} Rb3 {[%emt 0:00:18]} 61. Re5+ {[%emt 0:00:28]} Kd6 {[%emt 0:00:35]} 62. Re8 {[%emt 0:01:42]} Rf3+ {[%emt 0:00:44]} 63. Kg5 {[%emt 0:00:09]} e3 {[%emt 0:00:26]} 64. Kg6 {[%emt 0:03:27]} b4 65. Kxh5 {[%emt 0:00:00]} Rxg3 {[%emt 0:00:19]} 66. Kh6 {[%emt 0:00:00]} b3 {[%emt 0:00:07]} 67. h5 {[%emt 0:00:00]} b2 {[%emt 0:00:08]} 68. Rb8 {[%emt 0:00:00]} e2 {[%emt 0:00:05]} 69. Kh7 {[%emt 0:00:00]} e1=Q {[%emt 0:58:46]} 70. h6 {[%emt 0:03:00]} Qe7+ {[%emt 0:00:00]} 71. Kh8 {[%emt 0:00:00]} Qf6+ {[%emt 0:00:00]} 72. Kh7 {[%emt 0:00:00]} Qg6+ {[%emt 0:00:00]} 73. Kh8 {[%emt 0:00:00]} Qxh6# {[%emt 0:00:00]} 0-1